bitfinex/quotes_BTCUSD_20260125
["timestamp","ask_amount","ask_price","bid_price","bid_amount"]
[1769309069811,0.03,89137.0,89128.0,0.39391753]
[1769309070916,0.14230388,89138.0,89128.0,0.39391753]
[1769309071096,0.03,89136.0,89128.0,0.39391753]
[1769309071285,0.14230388,89136.0,89128.0,0.39391753]
[1769309071485,0.03365679,89142.0,89128.0,0.39391753]
[1769309071486,0.03,89134.0,89128.0,0.39391753]
[1769309072522,0.03,89137.0,89128.0,0.39391753]
[1769309072721,0.14230455,89137.0,89128.0,0.39391753]
[1769309073043,0.03,89135.0,89128.0,0.39391753]
[1769309073891,0.03,89137.0,89128.0,0.39391753]
[1769309074910,0.03,89136.0,89128.0,0.39391753]
[1769309075308,0.14230455,89136.0,89128.0,0.39391753]
[1769309075510,0.03,89134.0,89128.0,0.39391753]
[1769309076494,0.03,89138.0,89128.0,0.39391753]
[1769309077335,0.1423049,89138.0,89128.0,0.39391753]
[1769309077569,0.03,89136.0,89128.0,0.39391753]
[1769309079665,0.03,89135.0,89128.0,0.39391753]
[1769309080216,0.1423049,89135.0,89127.0,0.0001492]
[1769309080516,0.0001492,89127.0,89118.0,0.0001492]
[1769309080713,0.03,89126.0,89118.0,0.0001492]
[1769309080867,0.01122032,89124.0,89118.0,0.0001492]
[1769309081070,0.00189919,89119.0,89118.0,4.056e-05]
[1769309081267,0.00189919,89119.0,89106.0,0.17232]
[1769309081268,0.19203896,89119.0,89106.0,0.17232]
[1769309081470,0.00189919,89118.0,89106.0,0.17232]
[1769309082076,0.03,89119.0,89106.0,0.17232]
[1769309082275,0.03,89119.0,89109.0,0.00019672]
[1769309083091,0.03,89122.0,89109.0,0.00019672]
[1769309083470,0.03,89120.0,89109.0,0.00019672]
[1769309083668,0.00189919,89116.0,89109.0,0.00019672]
[1769309085082,0.00189919,89115.0,89109.0,0.00019672]
[1769309085736,0.03,89114.0,89109.0,0.00019672]
[1769309086053,0.00189919,89113.0,89109.0,0.00019672]
[1769309086269,0.03,89114.0,89109.0,0.00019672]
[1769309086270,0.05692025,89111.0,89109.0,0.00019672]
[1769309086473,0.02464058,89110.0,89109.0,0.00019672]
[1769309086692,0.05464058,89110.0,89109.0,0.00019672]
[1769309086926,0.03,89110.0,89100.0,0.0001492]
[1769309087128,0.03,89110.0,89100.0,0.00021854]
[1769309087569,0.03,89109.0,89100.0,0.00021854]
[1769309088623,0.03,89108.0,89100.0,0.00021854]
[1769309089641,0.03,89114.0,89100.0,0.00021854]
[1769309092022,0.02464058,89115.0,89100.0,0.00021854]
[1769309092023,0.03,89112.0,89100.0,0.00021854]
[1769309097390,0.03,89112.0,89102.0,0.16890918]
[1769309098956,0.03,89112.0,89102.0,0.16874014]
[1769309099957,0.03,89112.0,89102.0,0.16857111]
[1769309102214,0.05610323,89122.0,89100.0,0.00021854]
[1769309102215,0.04122069,89121.0,89105.0,0.21145867]
[1769309102437,0.03,89115.0,89108.0,0.16890918]
[1769309102642,0.03,89115.0,89109.0,0.16890918]
[1769309102857,0.03,89115.0,89109.0,0.16822216]
[1769309103064,0.03,89115.0,89109.0,0.16719133]
[1769309103307,0.03,89115.0,89109.0,0.16616014]
[1769309103472,0.03,89115.0,89109.0,0.16512859]
[1769309108347,0.14206341,89115.0,89109.0,0.16512859]
[1769309113460,0.03366668,89116.0,89100.0,0.00021854]
[1769309113461,0.03,89113.0,89111.0,0.17740127]
[1769309113670,0.01122057,89122.0,89112.0,0.3911799]
[1769309113879,0.03366733,89120.0,89112.0,0.3908565]
[1769309114271,0.0303102,89120.0,89112.0,0.17740127]
[1769309114470,0.01690712,89120.0,89112.0,0.1767544]
[1769309114674,0.01690712,89120.0,89112.0,0.17652254]
[1769309117359,0.08984246,89119.0,89112.0,0.17652254]
[1769309118142,0.08416166,89118.0,89113.0,0.21377863]
[1769309118367,0.14596214,89129.0,89118.0,4.056e-05]
[1769309118515,0.03366616,89125.0,89118.0,4.056e-05]
[1769309118718,0.13474245,89129.0,89114.0,0.17740127]
[1769309118915,0.03366616,89128.0,89114.0,0.17723224]
[1769309119115,0.03,89127.0,89114.0,0.17723224]
[1769309119775,0.03,89125.0,89114.0,0.17723224]
[1769309120541,0.03,89123.0,89114.0,0.17723224]
[1769309121208,0.03,89123.0,89114.0,0.1771171]
[1769309121546,0.03,89123.0,89114.0,0.21377863]
[1769309121746,0.03,89123.0,89115.0,0.17740127]
[1769309121943,0.03,89122.0,89115.0,0.17740127]
[1769309122171,0.03,89122.0,89115.0,0.17499452]
[1769309122994,0.03,89128.0,89115.0,0.17499452]
[1769309125255,0.03,89127.0,89115.0,0.17499452]
[1769309125695,0.03,89125.0,89115.0,0.17499452]
[1769309125967,0.14225706,89125.0,89115.0,0.17499452]
[1769309126149,0.03,89123.0,89115.0,0.17499452]
[1769309126432,0.14225706,89123.0,89115.0,0.17499452]
[1769309126627,0.03,89121.0,89115.0,0.17499452]
[1769309126827,0.14225706,89121.0,89115.0,0.17499452]
[1769309127022,0.03,89119.0,89115.0,0.17499452]
[1769309128118,0.14224993,89123.0,89115.0,0.17499452]
[1769309128329,0.03,89121.0,89115.0,0.17499452]
[1769309129487,0.03,89120.0,89115.0,0.17499452]
[1769309130272,0.01121994,89127.0,89115.0,0.17499452]
[1769309130473,0.03,89126.0,89115.0,0.17499452]
[1769309131271,0.03,89126.0,89110.0,0.18647352]
[1769309131625,0.03,89125.0,89110.0,0.18647352]
[1769309132022,0.03,89125.0,89110.0,0.22285088]
[1769309132452,0.03,89125.0,89110.0,0.40025215]
[1769309132640,0.03,89124.0,89110.0,0.3911799]
[1769309133845,0.03,89126.0,89111.0,0.00975138]
[1769309134249,0.05609892,89129.0,89111.0,0.00975138]
[1769309134705,0.03,89127.0,89111.0,0.23804258]
[1769309134907,0.03,89127.0,89111.0,0.2282912]
[1769309135128,0.03,89127.0,89112.0,0.00952558]
[1769309135842,0.03,89126.0,89112.0,0.00952558]
[1769309136050,0.03,89126.0,89112.0,0.23781678]
[1769309136369,0.03,89126.0,89112.0,0.2282912]
[1769309136913,0.04121969,89129.0,89112.0,0.2282912]
[1769309138120,0.04121969,89129.0,89112.0,0.40313547]
[1769309138499,0.03,89129.0,89112.0,0.40313547]
[1769309138727,0.03,89129.0,89112.0,0.17484427]
[1769309138902,0.03,89129.0,89113.0,0.2282912]
[1769309139240,0.03,89129.0,89098.0,0.22446983]
[1769309139241,0.03,89128.0,89111.0,0.2282912]
[1769309139375,0.03,89128.0,89115.0,0.2282912]
[1769309139578,0.03,89128.0,89117.0,0.2282912]
[1769309140004,0.04121981,89128.0,89110.0,0.2282912]
[1769309140208,0.03,89126.0,89110.0,0.40313547]
[1769309140459,0.04122007,89126.0,89101.0,0.01122321]
[1769309140615,0.04122007,89126.0,89104.0,0.17484427]
[1769309140817,0.03,89126.0,89108.0,0.2282912]
[1769309141045,0.03,89126.0,89110.0,0.40313547]
[1769309141251,0.03,89127.0,89105.0,0.17484427]
[1769309141450,0.03,89127.0,89107.0,0.17484427]
[1769309141645,0.03,89127.0,89110.0,0.2282912]
[1769309141901,0.03,89127.0,89112.0,0.2282912]
[1769309142100,0.03,89127.0,89113.0,0.41294419]
[1769309142407,0.01121969,89129.0,89113.0,0.40313547]
[1769309142408,0.03,89126.0,89113.0,0.40313547]
[1769309142798,0.03,89126.0,89113.0,0.17484427]
[1769309143098,0.03,89126.0,89114.0,0.2282912]
[1769309143274,0.03,89125.0,89114.0,0.2282912]
[1769309143687,0.03,89125.0,89115.0,0.00958282]
[1769309144249,0.03,89124.0,89115.0,0.00958282]
[1769309144476,0.01121981,89128.0,89115.0,0.00958282]
[1769309144684,0.01121969,89129.0,89113.0,0.17484427]
[1769309145251,0.01121969,89129.0,89113.0,0.2282912]
[1769309145453,0.03,89128.0,89114.0,0.17484427]
[1769309145572,0.04121981,89128.0,89114.0,0.17484427]
[1769309145769,0.03,89124.0,89100.0,0.00021854]
[1769309146056,0.03,89122.0,89100.0,0.00970073]
[1769309146233,0.03,89122.0,89104.0,0.17484427]
[1769309146403,0.03,89122.0,89106.0,0.17484427]
[1769309146602,0.03,89122.0,89106.0,0.40313547]
[1769309146803,0.03,89122.0,89107.0,0.17484427]
[1769309147411,0.03,89122.0,89107.0,0.40313547]
[1769309149237,0.03,89122.0,89108.0,0.17484427]
[1769309149624,0.03,89121.0,89108.0,0.17484427]
[1769309149820,0.18267031,89124.0,89108.0,0.17484427]
[1769309150030,0.19389063,89124.0,89108.0,0.40313547]
[1769309150844,0.03,89123.0,89108.0,0.40313547]
[1769309153259,0.01122032,89124.0,89108.0,0.40313547]
[1769309153852,0.03,89124.0,89108.0,0.40313547]
[1769309154274,0.04122032,89124.0,89108.0,0.40313547]
[1769309155078,0.04122032,89124.0,89108.0,0.2282912]
[1769309155284,0.04122032,89124.0,89109.0,0.40313547]
[1769309155911,0.01122019,89125.0,89109.0,0.40313547]
[1769309156268,0.01122032,89124.0,89109.0,0.40313547]
[1769309156717,0.0072968,89124.0,89109.0,0.40313547]
[1769309156920,0.12352402,89125.0,89109.0,0.40313547]
[1769309157120,0.12352402,89125.0,89100.0,0.30034623]
[1769309157121,0.11230383,89125.0,89110.0,0.2282912]
[1769309157334,0.03,89123.0,89111.0,0.40313547]
[1769309157536,0.03,89123.0,89113.0,0.2282912]
[1769309157739,0.03,89123.0,89102.0,0.01122309]
[1769309157740,0.03,89123.0,89115.0,0.2282912]
[1769309158148,0.14230383,89123.0,89115.0,0.2282912]
[1769309158305,0.03,89121.0,89115.0,0.2282912]
[1769309158510,0.12352364,89128.0,89115.0,0.22812217]
[1769309158733,0.11230383,89127.0,89115.0,0.40296644]
[1769309158978,0.01121969,89129.0,89115.0,0.40296644]
[1769309159162,0.11230484,89126.0,89115.0,0.40296644]
[1769309159461,0.03,89124.0,89115.0,0.40296644]
[1769309160213,0.01121981,89128.0,89115.0,0.40296644]
[1769309160430,0.03,89128.0,89115.0,0.40296644]
[1769309160853,0.03,89126.0,89115.0,0.40296644]
[1769309161904,0.03,89125.0,89115.0,0.40296644]
[1769309162874,0.03,89127.0,89115.0,0.40296644]
[1769309163283,0.03,89127.0,89104.0,0.01122284]
[1769309163552,0.03,89127.0,89110.0,0.2888139]
[1769309163753,0.14230468,89127.0,89114.0,0.1750286]
[1769309163966,0.03,89125.0,89118.0,0.22594352]
[1769309164167,0.03,89125.0,89119.0,0.1750286]
[1769309164519,0.03,89125.0,89119.0,0.40097212]
[1769309164928,0.03,89129.0,89119.0,0.40097212]
[1769309165904,0.14230468,89129.0,89119.0,0.40097212]
[1769309166786,0.11230468,89128.0,89119.0,0.40097212]
[1769309166988,0.03,89127.0,89119.0,0.40097212]
[1769309167742,0.14230468,89127.0,89119.0,0.40097212]
[1769309167980,0.14230468,89126.0,89119.0,0.40097212]
[1769309168155,0.03,89124.0,89106.0,0.01122258]
[1769309168358,0.14230468,89124.0,89109.0,0.22594352]
[1769309168514,0.03,89122.0,89112.0,0.1750286]
[1769309168723,0.03,89122.0,89116.0,0.1750286]
[1769309168927,0.03,89122.0,89105.0,0.01122271]
[1769309168928,0.03,89122.0,89119.0,0.1750286]
[1769309169138,0.03,89122.0,89120.0,0.37742422]
[1769309169482,0.03,89121.0,89120.0,0.36564919]
[1769309170505,0.14230468,89121.0,89120.0,0.36564919]
[1769309170714,0.03,89121.0,89120.0,0.36564919]
[1769309172507,0.03,89121.0,89120.0,0.36548015]
[1769309172763,0.03,89127.0,89120.0,0.36548015]
[1769309172919,0.14230468,89127.0,89120.0,0.36548015]
[1769309173123,0.03,89125.0,89120.0,0.36548015]
[1769309173685,0.03,89125.0,89109.0,0.01122221]
[1769309173904,0.03,89125.0,89113.0,0.17661105]
[1769309174108,0.03,89124.0,89116.0,0.22908816]
[1769309174307,0.03,89124.0,89116.0,0.40569921]
[1769309174923,0.03,89124.0,89116.0,0.22908816]
[1769309175134,0.11230468,89130.0,89109.0,0.01122221]
[1769309175135,0.03,89123.0,89109.0,0.01122221]
[1769309175341,0.03,89123.0,89112.0,0.22908816]
[1769309175559,0.03,89123.0,89116.0,0.17661105]
[1769309175775,0.03,89123.0,89117.0,0.40569921]
[1769309175981,0.03,89123.0,89117.0,0.22908816]
[1769309176186,0.03,89122.0,89120.0,0.17661105]
[1769309176390,0.03,89122.0,89121.0,0.40569921]
[1769309177215,0.03,89129.0,89121.0,0.40569921]
[1769309179121,0.14230468,89129.0,89121.0,0.40569921]
[1769309179328,0.03,89127.0,89121.0,0.40569921]
[1769309182362,0.11230468,89128.0,89121.0,0.40569921]
[1769309183748,0.11230468,89128.0,89109.0,0.01122221]
[1769309183950,0.11230468,89127.0,89113.0,0.17661105]
[1769309184157,0.11230468,89127.0,89116.0,0.17661105]
[1769309184357,0.11230468,89127.0,89116.0,0.22908816]
[1769309184561,0.11230468,89127.0,89117.0,0.17661105]
[1769309184942,0.11230468,89127.0,89117.0,0.40569921]
[1769309185832,0.1115985,89127.0,89117.0,0.40569921]
[1769309186011,0.11000908,89127.0,89117.0,0.40569921]
[1769309186208,0.10912567,89127.0,89117.0,0.40569921]
[1769309186418,0.10841863,89127.0,89117.0,0.40569921]
[1769309187500,0.02654826,89128.0,89117.0,0.40569921]
[1769309187654,0.0001492,89131.0,89117.0,0.40569921]
[1769309187869,0.0301492,89131.0,89117.0,0.40569921]
[1769309192377,0.0301492,89131.0,89118.0,0.17661105]
[1769309192544,0.0301492,89131.0,89119.0,0.40569921]
[1769309192740,0.0301492,89131.0,89119.0,0.40553021]
[1769309192948,0.0301492,89131.0,89119.0,0.40536122]
[1769309199605,0.03,89129.0,89119.0,0.40536122]
[1769309199808,0.14232042,89129.0,89119.0,0.40536122]
[1769309200008,0.03,89127.0,89119.0,0.40536122]
[1769309200208,0.14232042,89127.0,89119.0,0.40536122]
[1769309200386,0.03,89125.0,89119.0,0.40536122]
[1769309201323,0.03,89126.0,89119.0,0.40536122]
[1769309201542,0.14232042,89126.0,89119.0,0.40536122]
[1769309201754,0.03,89124.0,89114.0,0.22166075]
[1769309201928,0.14232042,89124.0,89118.0,0.17772476]
[1769309202264,0.03,89122.0,89114.0,0.17772476]
[1769309202583,0.14232042,89122.0,89118.0,0.17772476]
[1769309202741,0.14232042,89121.0,89120.0,0.17772476]
[1769309202966,0.14232042,89121.0,89120.0,0.39938551]
[1769309203435,0.03,89121.0,89120.0,0.39938551]
[1769309205317,0.0001492,89131.0,89120.0,0.39938551]
[1769309206300,0.0301492,89131.0,89120.0,0.39938551]
[1769309209806,0.0301492,89131.0,89120.0,0.17772476]
[1769309209987,0.0301492,89131.0,89116.0,0.00918393]
[1769309211214,0.00097592,89130.0,89116.0,0.00820812]
[1769309211570,0.0301492,89131.0,89116.0,0.22986887]
[1769309211772,0.03366336,89132.0,89116.0,0.22166075]
[1769309212016,0.03366336,89132.0,89116.0,0.23134463]
[1769309212442,0.03366336,89132.0,89116.0,0.40906939]
[1769309212577,0.03366336,89132.0,89116.0,0.39938551]
[1769309212786,0.03366336,89132.0,89117.0,0.00968377]
[1769309213585,0.03180957,89132.0,89117.0,0.00968377]
[1769309213795,0.01121906,89134.0,89117.0,0.00968377]
[1769309214024,0.03,89133.0,89117.0,0.00968377]
[1769309214892,0.06366336,89133.0,89117.0,0.00968377]
[1769309217385,0.03,89131.0,89117.0,0.00968377]
[1769309217585,0.03,89129.0,89117.0,0.00968377]
[1769309217769,0.14233556,89129.0,89117.0,0.00968377]
[1769309217966,0.03,89127.0,89117.0,0.00968377]
[1769309218800,0.11233556,89129.0,89117.0,0.00968377]
[1769309219035,0.11233556,89128.0,89117.0,0.00968377]
[1769309219210,0.03,89126.0,89117.0,0.00968377]
[1769309219432,0.14233556,89126.0,89117.0,0.00968377]
[1769309219651,0.03,89124.0,89117.0,0.00968377]
[1769309220788,0.14233556,89128.0,89117.0,0.00968377]
[1769309220997,0.03,89126.0,89117.0,0.00968377]
[1769309221131,0.14233556,89126.0,89117.0,0.40906928]
[1769309221332,0.03,89124.0,89117.0,0.39938551]
[1769309222418,0.14233556,89128.0,89117.0,0.39938551]
[1769309222621,0.03,89126.0,89117.0,0.39938551]
[1769309223597,0.03,89125.0,89117.0,0.39938551]
[1769309224211,0.14233556,89125.0,89117.0,0.39938551]
[1769309224446,0.03,89123.0,89117.0,0.39938551]
[1769309225393,0.03,89127.0,89117.0,0.39938551]
[1769309225597,0.14233556,89127.0,89117.0,0.39938551]
[1769309225819,0.03,89125.0,89117.0,0.39938551]
[1769309226019,0.14233556,89125.0,89117.0,0.39938551]
[1769309226233,0.03,89123.0,89117.0,0.39938551]
[1769309226557,0.14233556,89123.0,89117.0,0.17772476]
[1769309226759,0.03366336,89133.0,89117.0,0.18728752]
[1769309226760,0.03,89121.0,89117.0,0.18728752]
[1769309226898,0.03,89121.0,89118.0,0.39991286]
[1769309227736,0.03,89120.0,89118.0,0.39991286]
[1769309227944,0.03366336,89133.0,89118.0,0.39991286]
[1769309229030,0.03,89132.0,89118.0,0.39991286]
[1769309231309,0.03,89132.0,89110.0,0.30002624]
[1769309231459,0.03,89132.0,89111.0,0.02071399]
[1769309231664,0.03,89132.0,89113.0,0.18592039]
[1769309231869,0.03,89132.0,89116.0,0.21399247]
[1769309232067,0.03,89132.0,89117.0,0.00950454]
[1769309232284,0.03,89132.0,89111.0,0.02072649]
[1769309232478,0.03,89132.0,89112.0,0.39130016]
[1769309232711,0.03,89132.0,89113.0,0.00951021]
[1769309232909,0.03,89132.0,89115.0,0.18484556]
[1769309233110,0.03,89134.0,89116.0,0.40081005]
[1769309233320,0.03,89134.0,89116.0,0.39130016]
[1769309233523,0.03,89132.0,89116.0,0.39130016]
[1769309234295,0.03,89132.0,89117.0,0.00934161]
[1769309236410,0.03,89132.0,89117.0,0.21579621]
[1769309239922,0.03,89130.0,89117.0,0.21579621]
[1769309240103,0.14233212,89130.0,89117.0,0.21579621]
[1769309240311,0.03,89128.0,89117.0,0.21579621]
[1769309240470,0.14233212,89128.0,89117.0,0.21579621]
[1769309240678,0.03,89126.0,89117.0,0.21579621]
[1769309240998,0.11233212,89132.0,89117.0,0.21579621]
[1769309241195,0.11233212,89131.0,89117.0,0.21579621]
[1769309241397,0.11233212,89130.0,89117.0,0.21579621]
[1769309241578,0.11233212,89129.0,89117.0,0.21579621]
[1769309241779,0.03,89127.0,89117.0,0.21579621]
[1769309241986,0.14233212,89127.0,89117.0,0.21579621]
[1769309242203,0.03,89125.0,89117.0,0.21579621]
[1769309243282,0.03,89124.0,89117.0,0.21579621]
[1769309244250,0.11233212,89124.0,89117.0,0.21579621]
[1769309244508,0.11233212,89123.0,89117.0,0.21579621]
[1769309244716,0.03,89121.0,89117.0,0.21579621]
[1769309244915,0.03,89121.0,89117.0,0.40064177]
[1769309245126,0.03,89121.0,89117.0,0.39130016]
[1769309245567,0.08233212,89128.0,89112.0,0.18484556]
[1769309245767,0.03,89131.0,89113.0,0.00917103]
[1769309246022,0.03,89131.0,89113.0,0.21562563]
[1769309246597,0.03,89131.0,89113.0,0.19401659]
[1769309246807,0.03,89131.0,89114.0,0.2064546]
[1769309247168,0.03,89131.0,89115.0,0.00933216]
[1769309247849,0.03366336,89132.0,89115.0,0.00933216]
[1769309248010,0.22240657,89132.0,89115.0,0.00933216]
[1769309250523,0.03366336,89132.0,89118.0,0.2064546]
[1769309250851,0.03366336,89132.0,89119.0,0.40064241]
[1769309251041,0.03366336,89132.0,89110.0,0.28880416]
[1769309251236,0.03,89132.0,89113.0,0.2064546]
[1769309251444,0.03,89132.0,89114.0,0.21570127]
[1769309251685,0.03,89132.0,89114.0,0.40054683]
[1769309251872,0.03,89132.0,89114.0,0.39130016]
[1769309253002,0.03,89133.0,89113.0,0.001]
[1769309253137,0.07749522,89128.0,89113.0,0.001]
[1769309253347,0.03,89127.0,89113.0,0.001]
[1769309253746,0.03,89127.0,89109.0,0.00943844]
[1769309254232,0.03,89127.0,89114.0,0.001]
[1769309254884,0.03,89127.0,89109.0,0.00943844]
[1769309255289,0.26106288,89128.0,89109.0,0.00943844]
[1769309256221,0.03,89128.0,89109.0,0.00943844]
[1769309256423,0.03,89126.0,89109.0,0.00943844]
[1769309257172,0.21356766,89126.0,89109.0,0.00943844]
[1769309257684,0.03,89124.0,89109.0,0.00943844]
[1769309260091,0.03,89124.0,89109.0,0.0001492]
[1769309261485,0.03,89124.0,89109.0,0.0011492]
[1769309261827,0.03,89125.0,89109.0,0.0011492]
[1769309262928,0.03,89125.0,89110.0,0.17281701]
[1769309266292,0.03,89125.0,89110.0,0.17381701]
[1769309266694,0.03,89125.0,89110.0,0.17281701]
[1769309269315,0.03,89125.0,89110.0,0.17381701]
[1769309269829,0.03,89125.0,89110.0,0.17281701]
[1769309270249,0.03,89125.0,89110.0,0.17381701]
[1769309270563,0.03,89125.0,89110.0,0.17281701]
[1769309270915,0.03,89125.0,89110.0,0.17381701]
[1769309272233,0.03,89125.0,89110.0,0.17281701]
[1769309272634,0.03,89125.0,89110.0,0.17381701]
[1769309273067,0.03,89125.0,89110.0,0.17281701]
[1769309273433,0.03,89125.0,89110.0,0.17381701]
[1769309273875,0.14232181,89125.0,89110.0,0.17281701]
[1769309274297,0.14232181,89125.0,89110.0,0.17381701]
[1769309274718,0.11213532,89125.0,89110.0,0.17381701]
[1769309275332,0.11213532,89125.0,89110.0,0.17281701]
[1769309275630,0.03,89126.0,89110.0,0.17281701]
[1769309275834,0.03,89126.0,89110.0,0.17381701]
[1769309276241,0.03,89126.0,89110.0,0.17281701]
[1769309276621,0.03,89126.0,89110.0,0.17381701]
[1769309276985,0.03,89126.0,89110.0,0.17281701]
[1769309277240,0.03,89126.0,89110.0,0.17381701]
[1769309278683,0.03,89126.0,89110.0,0.17281701]
[1769309278982,0.03,89126.0,89110.0,0.17381701]
[1769309279550,0.03,89126.0,89110.0,0.17281701]
[1769309281563,0.16958053,89131.0,89110.0,0.17281701]
[1769309281564,0.03,89125.0,89113.0,0.21115342]
[1769309281775,0.03,89125.0,89116.0,0.17281701]
[1769309281978,0.03,89125.0,89117.0,0.0160467]
[1769309282586,0.03,89124.0,89117.0,0.0160467]
[1769309283533,0.03,89123.0,89117.0,0.0160467]
[1769309283971,0.08985454,89130.0,89117.0,0.0160467]
[1769309284180,0.08985454,89130.0,89112.0,0.01122183]
[1769309284181,0.0001492,89140.0,89123.0,0.20737933]
[1769309284401,0.03381029,89140.0,89123.0,0.39301593]
[1769309284729,0.03,89139.0,89123.0,0.39301593]
[1769309286740,0.14226231,89139.0,89123.0,0.39301593]
[1769309288335,0.14226231,89139.0,89120.0,0.28877522]
[1769309288542,0.14226231,89139.0,89121.0,0.015904]
[1769309288777,0.03,89137.0,89121.0,0.015904]
[1769309289008,0.03,89137.0,89118.0,0.01639196]
[1769309289183,0.03,89137.0,89117.0,0.01639268]
[1769309289391,0.03,89137.0,89119.0,0.1856366]
[1769309289564,0.03,89137.0,89122.0,0.20737933]
[1769309289769,0.03,89136.0,89124.0,0.1856366]
[1769309290911,0.03,89135.0,89124.0,0.1856366]
[1769309291113,0.03,89135.0,89124.0,0.20202818]
[1769309291724,0.03,89135.0,89124.0,0.1856366]
[1769309291923,0.03,89134.0,89124.0,0.20142158]
[1769309292718,0.0001492,89140.0,89124.0,0.20142158]
[1769309293712,0.03,89139.0,89124.0,0.20142158]
[1769309294979,0.03,89138.0,89124.0,0.20142158]
[1769309295325,0.03,89138.0,89124.0,0.20242158]
[1769309295865,0.03,89138.0,89124.0,0.20142158]
[1769309296101,0.0301492,89140.0,89124.0,0.20142158]
[1769309296776,0.0301492,89140.0,89124.0,0.20242158]
[1769309297786,0.0301492,89140.0,89125.0,0.20953962]
[1769309298098,0.03,89139.0,89125.0,0.20953962]
[1769309299170,0.0001492,89140.0,89125.0,0.20953962]
[1769309304410,0.0001492,89140.0,89126.0,0.19355905]
[1769309304560,0.0001492,89140.0,89127.0,0.01601854]
[1769309305183,0.14216249,89142.0,89127.0,0.01601854]
[1769309305799,0.14221002,89142.0,89127.0,0.01601854]
[1769309306900,0.03,89140.0,89120.0,0.21862016]
[1769309307100,0.11871352,89140.0,89121.0,0.19355905]
[1769309307374,0.03,89138.0,89121.0,0.19355905]
[1769309307751,0.12338092,89139.0,89121.0,0.19355905]
[1769309307959,0.11216249,89139.0,89122.0,0.19355905]
[1769309308313,0.01121855,89138.0,89122.0,0.19355905]
[1769309308618,0.01121868,89137.0,89122.0,0.19355905]
[1769309308897,0.12338104,89138.0,89122.0,0.19355905]
[1769309309099,0.10753583,89137.0,89122.0,0.19355905]
[1769309309239,0.01121868,89137.0,89122.0,0.19355905]
[1769309309627,0.03,89137.0,89122.0,0.19355905]
[1769309310664,0.03,89137.0,89122.0,0.19455905]
[1769309311045,0.03,89137.0,89122.0,0.19355905]
[1769309311875,0.04121868,89137.0,89122.0,0.19355905]
[1769309312079,0.08871377,89138.0,89122.0,0.19355905]
[1769309312284,0.07749522,89138.0,89122.0,0.19455905]
[1769309313926,0.07749522,89138.0,89122.0,0.19355905]
[1769309314321,0.07749522,89138.0,89122.0,0.19455905]
[1769309314668,0.07749522,89138.0,89122.0,0.19355905]
[1769309318700,0.07749522,89138.0,89123.0,0.19036789]
[1769309320070,0.08871377,89138.0,89123.0,0.19036789]
[1769309320291,0.07749522,89138.0,89123.0,0.19036789]
[1769309320658,0.08871377,89138.0,89118.0,0.19051709]
[1769309320990,0.07749522,89137.0,89118.0,0.19051709]
[1769309321190,0.11232251,89136.0,89118.0,0.21294211]
[1769309321397,0.11232251,89136.0,89120.0,0.19036789]
[1769309321398,0.03,89135.0,89120.0,0.19036789]
[1769309328320,0.03,89135.0,89122.0,0.19036789]
[1769309329231,0.03,89135.0,89121.0,0.21279291]
[1769309329232,0.03,89135.0,89118.0,0.0001492]
[1769309329450,0.10749522,89135.0,89118.0,0.0001492]
[1769309329672,0.03,89133.0,89118.0,0.0001492]
[1769309331082,0.03,89133.0,89118.0,0.0011492]
[1769309332216,0.03,89133.0,89118.0,0.0001492]
[1769309332518,0.03,89133.0,89118.0,0.0011492]
[1769309333285,0.03,89133.0,89119.0,0.19036789]
[1769309334949,0.03,89133.0,89120.0,0.19036789]
[1769309335758,0.03,89133.0,89120.0,0.21279291]
[1769309335935,0.03,89132.0,89120.0,0.4031608]
[1769309337357,0.03,89131.0,89120.0,0.4031608]
[1769309337659,0.03,89131.0,89121.0,0.19036789]
[1769309337867,0.11232367,89137.0,89121.0,0.19036789]
[1769309338029,0.10377917,89137.0,89121.0,0.19036789]
[1769309338227,0.06380345,89137.0,89121.0,0.19036789]
[1769309338410,0.05239211,89137.0,89121.0,0.19036789]
[1769309338616,0.04525335,89137.0,89121.0,0.19036789]
[1769309341273,0.04239525,89137.0,89121.0,0.19036789]
[1769309341595,0.03238308,89137.0,89121.0,0.19036789]
[1769309342455,0.06304621,89140.0,89121.0,0.19036789]
[1769309342657,0.03077495,89139.0,89121.0,0.19036789]
[1769309342894,0.04163195,89141.0,89121.0,0.19036789]
[1769309343085,0.04124374,89141.0,89121.0,0.19036789]
[1769309343293,0.01121868,89137.0,89121.0,0.19036789]
[1769309343653,0.05609264,89139.0,89118.0,0.0001492]
[1769309343835,0.03,89138.0,89118.0,0.0001492]
[1769309344031,0.03,89136.0,89118.0,0.19816511]
[1769309345007,0.03,89135.0,89118.0,0.19816511]
[1769309346249,0.06731259,89137.0,89118.0,0.19816511]
[1769309346250,0.03,89134.0,89118.0,0.19816511]
[1769309347205,0.03,89133.0,89118.0,0.19816511]
[1769309347408,0.03,89133.0,89118.0,0.19219978]
[1769309347650,0.03,89133.0,89119.0,0.19801591]
[1769309348267,0.03,89132.0,89119.0,0.19801591]
[1769309349261,0.01121843,89139.0,89119.0,0.19801591]
[1769309349262,0.03,89138.0,89119.0,0.19801591]
[1769309351453,0.03,89139.0,89119.0,0.19801591]
[1769309351611,0.04121843,89139.0,89119.0,0.19801591]
[1769309351812,0.03,89139.0,89119.0,0.19801591]
[1769309353515,0.11985902,89139.0,89119.0,0.19801591]
[1769309354207,0.11985902,89139.0,89119.0,0.22215178]
[1769309354408,0.11985902,89139.0,89120.0,0.19801591]
[1769309354611,0.03,89137.0,89120.0,0.19801591]
[1769309355886,0.03,89136.0,89120.0,0.19801591]
[1769309357770,0.03,89137.0,89120.0,0.19801591]
[1769309358871,0.03,89139.0,89120.0,0.19801591]
[1769309359459,0.04121843,89139.0,89120.0,0.19801591]
[1769309359658,0.03,89139.0,89120.0,0.19801591]
[1769309360062,0.03,89139.0,89120.0,0.22215178]
[1769309360231,0.03,89139.0,89121.0,0.19897273]
[1769309363765,0.06014546,89139.0,89121.0,0.19897273]
[1769309364792,0.06014546,89139.0,89121.0,0.22215178]
[1769309364966,0.06014546,89139.0,89121.0,0.42112451]